bitfinex/quotes_BTCUSD_20250713
["timestamp","ask_amount","ask_price","bid_price","bid_amount"]
[1752407953213,0.00508949,117890.0,117870.0,0.16188]
[1752407953426,0.00508949,117890.0,117880.0,0.0021208]
[1752407953631,0.00714949,117890.0,117880.0,0.0021208]
[1752407955158,0.00714949,117890.0,117880.0,0.3109608]
[1752407955359,0.00714949,117890.0,117880.0,0.30884]
[1752407956552,0.00714949,117890.0,117880.0,0.31083]
[1752407957159,0.00714949,117890.0,117880.0,0.30884]
[1752407959632,0.00714949,117890.0,117880.0,0.31083]
[1752407960035,0.00714949,117890.0,117880.0,0.30884]
[1752407961113,0.00242766,117890.0,117880.0,0.30884]
[1752407962094,0.00242766,117890.0,117880.0,0.2032]
[1752407964587,0.00242766,117890.0,117870.0,0.16476]
[1752407964762,0.00242766,117890.0,117880.0,0.0021208]
[1752407965195,0.00242766,117890.0,117880.0,0.3109608]
[1752407965333,0.00242766,117890.0,117880.0,0.31083]
[1752407966385,0.05602784,117900.0,117880.0,0.31083]
[1752407966652,0.05602784,117900.0,117890.0,0.13148062]
[1752407966847,0.05692784,117900.0,117890.0,0.13148062]
[1752407969196,0.05792784,117900.0,117890.0,0.13148062]
[1752407969607,0.05892784,117900.0,117890.0,0.13148062]
[1752407973488,0.0022,117910.0,117900.0,0.0317]
[1752407973691,0.0022,117910.0,117900.0,0.11712993]
[1752407973900,0.0022,117910.0,117900.0,0.13742022]
[1752407974110,0.0022,117910.0,117900.0,0.25147993]
[1752407974321,0.0022,117910.0,117900.0,0.32147993]
[1752407975151,0.0022,117910.0,117900.0,0.25147993]
[1752407975350,0.0022,117910.0,117900.0,0.56031993]
[1752407975554,0.0022,117910.0,117900.0,0.52865993]
[1752407975732,0.0031,117910.0,117900.0,0.52865993]
[1752407975971,0.00224949,117910.0,117900.0,0.54795993]
[1752407976244,0.00224949,117910.0,117900.0,0.56335993]
[1752407977270,0.00224949,117910.0,117900.0,0.42701993]
[1752407977474,0.00224949,117910.0,117900.0,0.45771993]
[1752407978076,0.00224949,117910.0,117900.0,0.46071993]
[1752407979844,0.204721,117920.0,117900.0,0.46071993]
[1752407981809,0.204721,117920.0,117900.0,0.45671993]
[1752407982008,0.204721,117920.0,117900.0,0.46071993]
[1752407982235,0.204721,117920.0,117900.0,0.45771993]
[1752407982790,0.204721,117920.0,117900.0,0.45971993]
[1752407985252,0.204721,117920.0,117910.0,0.10564]
[1752407985438,0.206831,117920.0,117910.0,0.10564]
[1752407985985,0.240991,117920.0,117910.0,0.2348]
[1752407986548,0.240991,117920.0,117910.0,0.2358]
[1752407986745,0.240991,117920.0,117910.0,0.2378]
[1752407987188,0.235991,117920.0,117910.0,0.10864]
[1752407987396,0.235991,117920.0,117910.0,0.23776]
[1752407997650,0.235991,117920.0,117910.0,0.10864]
[1752407997651,0.66142093,117920.0,117910.0,0.10864]
[1752407997831,0.66142093,117920.0,117910.0,0.2376]
[1752408005400,0.68683893,117920.0,117910.0,0.2376]
[1752408005618,0.68683893,117920.0,117910.0,0.23804]
[1752408016760,0.65267893,117920.0,117910.0,0.23804]
[1752408016967,0.65267893,117920.0,117910.0,0.10864]
[1752408017127,0.65267893,117920.0,117910.0,0.238]
[1752408017362,0.65578893,117920.0,117910.0,0.238]
[1752408017923,0.67188893,117920.0,117910.0,0.238]
[1752408019014,0.67188893,117920.0,117910.0,0.13236]
[1752408019936,0.68768893,117920.0,117910.0,0.13236]
[1752408020910,0.66227093,117920.0,117910.0,0.13236]
[1752408033765,0.6894283,117920.0,117910.0,0.13236]
[1752408034806,0.6894283,117920.0,117910.0,0.13136]
[1752408035092,0.6894283,117920.0,117910.0,0.12936]
[1752408036114,0.6894283,117920.0,117910.0,0.13036]
[1752408036548,0.6894283,117920.0,117910.0,0.12936]
[1752408036968,0.6904283,117920.0,117910.0,0.12936]
[1752408044354,0.3714,117910.0,117900.0,0.2032]
[1752408044574,0.46192993,117910.0,117900.0,0.33248]
[1752408045124,0.48771296,117910.0,117900.0,0.33248]
[1752408045488,0.48771296,117910.0,117900.0,0.33348]
[1752408050379,0.47251296,117910.0,117900.0,0.33348]
[1752408051362,0.45631296,117910.0,117900.0,0.33348]
[1752408053264,0.45330296,117910.0,117900.0,0.33552]
[1752408053459,0.45330296,117910.0,117900.0,0.33876]
[1752408053841,0.45330296,117910.0,117900.0,0.35386]
[1752408055033,0.45121296,117910.0,117900.0,0.33876]
[1752408055207,0.45121296,117910.0,117900.0,0.36946]
[1752408057057,0.42542993,117910.0,117900.0,0.36946]
[1752408057293,0.34,117910.0,117900.0,0.36946]
[1752408058908,0.199721,117920.0,117900.0,0.33876]
[1752408059086,0.62515093,117920.0,117910.0,0.0307]
[1752408059341,0.62515093,117920.0,117910.0,0.03598]
[1752408060638,0.62724093,117920.0,117910.0,0.02038]
[1752408060862,0.62724093,117920.0,117910.0,0.00528]
[1752408061034,0.62724093,117920.0,117910.0,0.02038]
[1752408061566,0.62724093,117920.0,117910.0,0.03598]
[1752408061996,0.62824093,117920.0,117910.0,0.03598]
[1752408068872,0.62615093,117920.0,117910.0,0.03598]
[1752408082347,0.65156593,117920.0,117910.0,0.03598]
[1752408090981,0.65156593,117920.0,117910.0,0.23914]
[1752408095791,0.65156593,117920.0,117910.0,0.34478]
[1752408096675,0.65353593,117920.0,117910.0,0.34478]
[1752408109278,0.65156593,117920.0,117910.0,0.34478]
[1752408110820,0.62615093,117920.0,117910.0,0.34478]
[1752408111029,0.540721,117920.0,117910.0,0.34478]
[1752408113929,0.539721,117920.0,117910.0,0.34478]
[1752408114249,0.539721,117920.0,117910.0,0.34578]
[1752408114702,0.539721,117920.0,117910.0,0.34478]
[1752408115176,0.1804623,117920.0,117910.0,0.34578]
[1752408115395,0.1804623,117920.0,117910.0,0.34778]
[1752408140736,0.17198197,117920.0,117910.0,0.34778]
[1752408149643,0.17198197,117920.0,117910.0,0.41778]
[1752408155643,0.17198197,117920.0,117910.0,0.5463]
[1752408156449,0.17198197,117920.0,117910.0,0.41778]
[1752408156652,0.17198197,117920.0,117910.0,0.5463]
[1752408158326,0.17198197,117920.0,117910.0,0.41778]
[1752408158539,0.17198197,117920.0,117910.0,0.54638]
[1752408172264,0.15272425,117920.0,117910.0,0.54638]
[1752408180371,0.13346665,117920.0,117910.0,0.54638]
[1752408201531,0.13341577,117920.0,117910.0,0.54638]
[1752408209323,0.13341577,117920.0,117910.0,0.54642]
[1752408220278,0.13341577,117920.0,117910.0,0.53082]
[1752408223191,0.13341577,117920.0,117910.0,0.63254993]
[1752408224353,0.11415956,117920.0,117910.0,0.52590993]
[1752408224782,0.11415956,117920.0,117910.0,0.52790993]
[1752408225172,0.11415956,117920.0,117910.0,0.63350993]
[1752408226532,0.11415956,117920.0,117910.0,0.52790993]
[1752408226907,0.11415956,117920.0,117910.0,0.52590993]
[1752408227067,0.11415956,117920.0,117910.0,0.52890993]
[1752408229635,0.11415956,117920.0,117910.0,0.32574993]
[1752408230098,0.11415956,117920.0,117910.0,0.35111637]
[1752408230510,0.11415956,117920.0,117910.0,0.41565722]
[1752408230770,0.08665219,117920.0,117910.0,0.46565711]
[1752408230989,0.08665219,117920.0,117910.0,0.41565722]
[1752408231321,0.08665219,117920.0,117910.0,0.46565711]
[1752408231730,0.08665219,117920.0,117910.0,0.46365711]
[1752408231930,0.08665219,117920.0,117910.0,0.46265711]
[1752408232145,0.08665219,117920.0,117910.0,0.46565711]
[1752408232563,0.08665219,117920.0,117910.0,0.46365711]
[1752408232771,0.08665219,117920.0,117910.0,0.46565711]
[1752408233008,0.08665219,117920.0,117910.0,0.41565722]
[1752408233221,0.08665219,117920.0,117910.0,0.46565711]
[1752408233596,0.08665219,117920.0,117910.0,0.80565711]
[1752408235223,0.08665219,117920.0,117910.0,1.11437711]
[1752408235542,0.08665219,117920.0,117910.0,1.41107711]
[1752408236157,0.08665219,117920.0,117910.0,1.36107722]
[1752408236376,0.08665219,117920.0,117910.0,1.41107711]
[1752408236576,0.05914793,117920.0,117910.0,1.41107711]
[1752408236831,0.02106479,117920.0,117910.0,3.15840311]
[1752408237042,0.01260187,117920.0,117910.0,2.81771411]
[1752408237430,0.00413895,117920.0,117910.0,2.81771411]
[1752408237876,0.1202,117930.0,117920.0,0.09999989]
[1752408238083,0.12024949,117930.0,117920.0,0.4805699]
[1752408238283,0.12024949,117930.0,117920.0,0.47844982]
[1752408239354,0.12024949,117930.0,117920.0,0.48044982]
[1752408239889,0.12024949,117930.0,117920.0,0.48244982]
[1752408241047,0.12024949,117930.0,117920.0,0.82244982]
[1752408245238,0.12024949,117930.0,117920.0,1.13112982]
[1752408248910,0.12024949,117930.0,117920.0,1.02552982]
[1752408251004,0.12024949,117930.0,117920.0,0.82244982]
[1752408251892,0.11178757,117930.0,117920.0,0.82244982]
[1752408252357,0.10332565,117930.0,117920.0,0.82244982]
[1752408252574,0.09486373,117930.0,117920.0,0.82244982]
[1752408253782,0.09486373,117930.0,117920.0,1.16164982]
[1752408255119,0.09486373,117930.0,117920.0,1.47032982]
[1752408255463,0.06736281,117930.0,117920.0,1.47032982]
[1752408258980,0.06736281,117930.0,117920.0,1.36472982]
[1752408260512,0.05890171,117930.0,117920.0,1.36472982]
[1752408260904,0.05044061,117930.0,117920.0,1.36472982]
[1752408261286,0.04197951,117930.0,117920.0,1.16164982]
[1752408261703,0.03351841,117930.0,117920.0,1.16164982]
[1752408262121,0.02505731,117930.0,117920.0,1.16164982]
[1752408262625,0.01659621,117930.0,117920.0,1.16164982]
[1752408264511,0.01659621,117930.0,117920.0,1.17824582]
[1752408265238,0.01659621,117930.0,117920.0,1.78354582]
[1752408266151,0.01659621,117930.0,117920.0,1.67798582]
[1752408266528,0.00719836,117930.0,117920.0,1.67798582]
[1752408267124,0.00719836,117930.0,117920.0,0.89028582]
[1752408267325,0.00926836,117930.0,117920.0,0.81862982]
[1752408267533,0.04360836,117930.0,117920.0,0.89706993]
[1752408267742,0.04360836,117930.0,117920.0,0.55706993]
[1752408268143,0.04360836,117930.0,117920.0,0.47164]
[1752408268761,0.04360836,117930.0,117920.0,0.6832]
[1752408269136,0.04360836,117930.0,117920.0,0.81164]
[1752408272400,0.04374543,117930.0,117920.0,0.81164]
[1752408273531,0.04360836,117930.0,117920.0,0.81150293]
[1752408275333,0.04360836,117930.0,117920.0,1.12018293]
[1752408276265,0.04360836,117930.0,117920.0,1.12026293]
[1752408279672,0.04360836,117930.0,117920.0,0.78026293]
[1752408282298,0.04360836,117930.0,117920.0,0.65174293]
[1752408282499,0.04360836,117930.0,117920.0,0.78026293]
[1752408287988,0.04360836,117930.0,117920.0,0.65174293]
[1752408288398,0.04360836,117930.0,117920.0,0.78018293]
[1752408297579,0.04343652,117930.0,117920.0,0.78018293]
[1752408302196,0.04355153,117930.0,117920.0,0.78018293]
[1752408303255,0.04343652,117930.0,117920.0,0.78006792]
[1752408308182,0.04019652,117930.0,117920.0,0.78006792]
[1752408308364,0.02222652,117930.0,117920.0,0.78203792]
[1752408308549,0.00702652,117930.0,117920.0,0.81723792]
[1752408309388,0.00702652,117930.0,117920.0,0.78513792]
[1752408313061,0.00909652,117930.0,117920.0,0.78513792]
[1752408313487,0.04383652,117930.0,117920.0,0.78006792]
[1752408317344,0.04059652,117930.0,117920.0,0.78006792]
[1752408318229,0.02469652,117930.0,117920.0,0.78006792]
[1752408319573,0.02469652,117930.0,117920.0,0.78203792]
[1752408322683,0.00909652,117930.0,117920.0,0.78513792]
[1752408323389,0.00702652,117930.0,117920.0,0.78513792]
[1752408324541,0.00702652,117930.0,117920.0,0.65669792]
[1752408324708,0.00702652,117930.0,117920.0,0.78513792]
[1752408324906,0.00909652,117930.0,117920.0,0.78513792]
[1752408335201,0.00909652,117930.0,117920.0,0.65669792]
[1752408335391,0.00909652,117930.0,117920.0,0.78513792]
[1752408339877,0.02549652,117930.0,117920.0,0.78513792]
[1752408341005,0.00909652,117930.0,117920.0,0.78513792]
[1752408342556,0.00909652,117930.0,117920.0,0.78203792]
[1752408343134,0.02549652,117930.0,117920.0,0.78203792]
[1752408344382,0.04199652,117930.0,117920.0,0.78203792]
[1752408346961,0.02549652,117930.0,117920.0,0.78203792]
[1752408347161,0.02549652,117930.0,117920.0,0.78524792]
[1752408347600,0.01533973,117930.0,117920.0,0.78524792]
[1752408348840,0.02752617,117940.0,117920.0,0.78524792]
[1752408349063,0.1129561,117940.0,117930.0,0.1284]
[1752408349274,0.1139861,117940.0,117930.0,0.1284]
[1752408350599,0.1290861,117940.0,117930.0,0.1284]
[1752408351607,0.1258461,117940.0,117930.0,0.1984]
[1752408352615,0.1258461,117940.0,117930.0,0.40148]
[1752408354563,0.1258461,117940.0,117930.0,0.40248]
[1752408357535,0.1258461,117940.0,117930.0,0.50808]
[1752408360046,0.1258461,117940.0,117930.0,0.37968]
[1752408360252,0.1258461,117940.0,117930.0,0.50808]
[1752408361152,0.1258461,117940.0,117930.0,0.37968]
[1752408361370,0.4681261,117940.0,117930.0,0.50808]
[1752408361577,0.4681261,117940.0,117930.0,0.49961648]
[1752408361578,0.4935391,117940.0,117930.0,0.49961648]
[1752408362063,0.4935391,117940.0,117930.0,0.49115296]
[1752408362270,0.4935391,117940.0,117930.0,0.43808]
[1752408362487,0.4935391,117940.0,117930.0,0.20308]
[1752408362881,0.4620391,117940.0,117930.0,0.20308]
[1752408363528,0.4932391,117940.0,117930.0,0.20308]
[1752408363743,0.34,117930.0,117910.0,4e-05]
[1752408363963,0.3712,117930.0,117920.0,0.1284]
[1752408364174,0.45882993,117930.0,117920.0,0.1284]
[1752408364396,0.48620593,117930.0,117920.0,0.1284]
[1752408365239,0.48620593,117930.0,117920.0,0.33152]
[1752408366866,0.48400593,117930.0,117920.0,0.33152]
[1752408378010,0.14400593,117930.0,117920.0,0.33152]
[1752408380833,0.14383125,117930.0,117920.0,0.33152]
[1752408392088,0.12810593,117930.0,117920.0,0.33152]
[1752408396120,0.11280593,117930.0,117920.0,0.33152]
[1752408397157,0.11280593,117930.0,117920.0,0.33461]
[1752408398252,0.11280593,117930.0,117920.0,0.33665]
[1752408399720,0.11280593,117930.0,117920.0,0.20825]
[1752408399876,0.11280593,117930.0,117920.0,0.33665]
[1752408400638,0.11280593,117930.0,117920.0,0.40665]
[1752408408535,0.11280593,117930.0,117920.0,0.27825]
[1752408408956,0.11280593,117930.0,117920.0,0.40665]
[1752408413623,0.11280593,117930.0,117920.0,0.40152]
[1752408413825,0.14460593,117930.0,117920.0,0.40152]
[1752408414958,0.12920593,117930.0,117920.0,0.40152]
[1752408415571,0.14460593,117930.0,117920.0,0.40152]
[1752408416186,0.48460593,117930.0,117920.0,0.26465533]
[1752408416546,0.48688593,117930.0,117920.0,0.39305533]
[1752408416749,0.48688593,117930.0,117920.0,0.38459066]
[1752408417038,0.48688593,117930.0,117920.0,0.37612599]
[1752408417456,0.48688593,117930.0,117920.0,0.36766132]
[1752408417880,0.48688593,117930.0,117920.0,0.35919665]
[1752408418211,0.48688593,117930.0,117920.0,0.35073198]
[1752408418660,0.48688593,117930.0,117920.0,0.34226731]
[1752408419047,0.48688593,117930.0,117920.0,0.33380264]
[1752408419455,0.48688593,117930.0,117920.0,0.20312]
[1752408420087,0.48688593,117930.0,117910.0,8.949e-05]
[1752408420293,0.401456,117930.0,117920.0,0.20312]
[1752408420506,0.34,117920.0,117910.0,0.00317949]
[1752408420738,0.42542993,117920.0,117910.0,0.13361949]
[1752408421107,0.45919993,117920.0,117910.0,0.12848949]
[1752408421263,0.48461893,117920.0,117910.0,8.949e-05]
[1752408421463,0.48461893,117920.0,117910.0,0.12848949]
[1752408421644,0.48689893,117920.0,117900.0,0.10309]
[1752408421849,0.061469,117920.0,117910.0,0.1284]
[1752408422056,0.12147993,117920.0,117900.0,0.10309]
[1752408422310,0.08542993,117910.0,117900.0,0.1]
[1752408422475,0.10299993,117910.0,117900.0,0.1]
[1752408422889,0.10299993,117910.0,117900.0,0.101]
[1752408422890,0.12842093,117910.0,117900.0,0.101]
[1752408423068,0.14462093,117910.0,117900.0,0.101]
[1752408423270,0.14462093,117910.0,117900.0,0.22952]
[1752408424352,0.11282093,117910.0,117900.0,0.22852]
[1752408424554,0.11282093,117910.0,117900.0,0.23372]
[1752408424784,0.11282093,117910.0,117900.0,0.23463739]
[1752408425212,0.11282093,117910.0,117900.0,0.43679739]
[1752408430554,0.11085093,117910.0,117900.0,0.43679739]
[1752408431183,0.45085093,117910.0,117900.0,0.43679739]
[1752408432141,0.45283093,117910.0,117900.0,0.43679739]
[1752408432568,0.45085093,117910.0,117900.0,0.43679739]
[1752408434735,0.45283093,117910.0,117900.0,0.43679739]
[1752408437447,0.45085093,117910.0,117900.0,0.43679739]
[1752408439178,0.4506813,117910.0,117900.0,0.43679739]
[1752408440168,0.4506813,117910.0,117900.0,0.45339739]
[1752408442531,0.4506813,117910.0,117900.0,0.43679739]
[1752408445105,0.4506813,117910.0,117900.0,0.45219739]
[1752408445309,0.4506813,117910.0,117900.0,0.46819739]
[1752408446155,0.4252603,117910.0,117900.0,0.46819739]
[1752408448154,0.4252603,117910.0,117900.0,0.53819739]
[1752408449837,0.4252603,117910.0,117900.0,0.53795223]
[1752408473866,0.4272403,117910.0,117900.0,0.50655223]
[1752408474632,0.4526593,117910.0,117900.0,0.50655223]
[1752408482363,0.4526593,117910.0,117900.0,0.50647223]
[1752408482564,0.4526593,117910.0,117900.0,0.37283223]
[1752408482791,0.1126593,117910.0,117900.0,0.50127223]
[1752408486592,0.1126593,117910.0,117900.0,0.50644223]
[1752408489339,0.1126593,117910.0,117900.0,0.37283223]
[1752408489552,0.16047015,117910.0,117900.0,0.33424423]
[1752408489708,0.16047015,117910.0,117900.0,0.46268423]
[1752408489916,0.16047015,117910.0,117900.0,0.39268423]
[1752408490452,0.50047015,117910.0,117900.0,0.25577831]
[1752408490614,0.50047015,117910.0,117900.0,0.38421831]
[1752408490823,0.50047015,117910.0,117900.0,0.37575239]
[1752408491047,0.50047015,117910.0,117900.0,0.24731239]
[1752408491225,0.50047015,117910.0,117900.0,0.36728647]
[1752408491810,0.50047015,117910.0,117900.0,0.35882055]
[1752408492219,0.50047015,117910.0,117900.0,0.35035463]
[1752408492543,0.50047015,117910.0,117900.0,0.21344871]
[1752408492798,0.50047015,117910.0,117900.0,0.34188871]
[1752408492969,0.50047015,117910.0,117900.0,0.33342279]
[1752408493179,0.50047015,117910.0,117890.0,0.10564]
[1752408493368,0.50047015,117910.0,117900.0,0.20316]
[1752408493733,0.38564085,117900.0,117890.0,0.10568949]
[1752408493932,0.47305078,117900.0,117890.0,0.30884949]
[1752408494393,0.49847478,117900.0,117890.0,0.30884949]
[1752408494524,0.50985348,117900.0,117890.0,0.43728949]
[1752408498793,0.99935348,117900.0,117890.0,0.43728949]
[1752408500225,0.98385348,117900.0,117890.0,0.43728949]
[1752408501435,0.96825348,117900.0,117890.0,0.43728949]
[1752408501860,0.96825348,117900.0,117890.0,0.33164949]
[1752408505762,1.00133348,117900.0,117890.0,0.33172949]
[1752408507671,0.99905348,117900.0,117890.0,0.33172949]
[1752408516750,0.98345348,117900.0,117890.0,0.33172949]
[1752408517000,0.96825348,117900.0,117890.0,0.33172949]
[1752408517271,0.98415348,117900.0,117890.0,0.33172949]
[1752408517628,0.96825348,117900.0,117890.0,0.33172949]
[1752408523191,0.96825348,117900.0,117890.0,0.20320949]
[1752408523444,0.99915348,117900.0,117890.0,0.33164949]
[1752408527051,0.99915348,117900.0,117890.0,0.20320949]
[1752408527286,0.99915348,117900.0,117890.0,0.33164949]
[1752408533077,0.98345348,117900.0,117890.0,0.33164949]
[1752408533285,0.96825348,117900.0,117890.0,0.33164949]
[1752408539310,0.96825348,117900.0,117890.0,0.20320949]
[1752408539458,0.96825348,117900.0,117890.0,0.33164949]
[1752408540585,0.47875348,117900.0,117890.0,4.949e-05]
[1752408540788,0.51135348,117900.0,117890.0,0.46008]
[1752408540993,0.51363348,117900.0,117890.0,0.2032]
[1752408542030,0.51363348,117900.0,117880.0,0.0165]
[1752408542233,0.42542993,117890.0,117880.0,0.0165]
[1752408542432,0.42542993,117890.0,117880.0,0.25898]
[1752408542635,0.44192993,117890.0,117880.0,0.25898]
[1752408543211,0.44192993,117890.0,117880.0,0.2622]
[1752408543700,0.44192993,117890.0,117880.0,0.2781]
[1752408544236,0.44153499,117890.0,117880.0,0.2781]
[1752408545210,0.44153499,117890.0,117880.0,0.4813]
[1752408546167,0.93103499,117890.0,117880.0,0.4813]
[1752408547127,0.956597,117890.0,117880.0,0.4813]
[1752408554707,0.956597,117890.0,117880.0,0.21595145]
[1752408554892,0.961627,117890.0,117880.0,0.21595145]
[1752408555800,0.961627,117890.0,117880.0,0.47283145]
[1752408559292,0.961627,117890.0,117880.0,0.46008]
[1752408559821,0.472127,117890.0,117880.0,0.46008]
[1752408570221,0.47190222,117890.0,117880.0,0.46008]
[1752408572354,0.47190222,117890.0,117880.0,0.20324]
[1752408573621,0.01454085,117880.0,117870.0,0.03124949]
[1752408573836,0.09997078,117880.0,117870.0,0.49331949]
[1752408574907,0.12539878,117880.0,117870.0,0.49331949]
[1752408575144,0.12539878,117880.0,117870.0,0.49431949]
[1752408575343,0.12539878,117880.0,117870.0,0.59999949]
[1752408577777,0.12539878,117880.0,117870.0,0.60099949]
[1752408580085,0.13064878,117880.0,117870.0,0.58579949]
[1752408581704,0.13064878,117880.0,117870.0,0.60189949]
[1752408582799,0.13064878,117880.0,117870.0,0.58579949]
[1752408586363,0.13064878,117880.0,117870.0,0.60209949]
[1752408587280,0.13064878,117880.0,117870.0,0.58579949]
[1752408587479,0.13064878,117880.0,117870.0,0.56979949]
[1752408591007,0.13064878,117880.0,117870.0,0.58489949]
[1752408593497,0.13064878,117880.0,117870.0,0.56979949]
[1752408594846,0.13064878,117880.0,117870.0,0.58489949]
[1752408597256,0.13064878,117880.0,117870.0,0.56979949]
[1752408600286,0.13064878,117880.0,117870.0,0.46411949]
[1752408604758,0.13064878,117880.0,117870.0,0.56979949]
[1752408615992,0.13064878,117880.0,117870.0,0.56780949]
[1752408617081,0.13064878,117880.0,117870.0,0.56993949]
[1752408618398,0.13064878,117880.0,117870.0,0.56780949]
[1752408619946,0.13064878,117880.0,117870.0,0.56993949]
[1752408620703,0.13064878,117880.0,117870.0,0.57070049]
[1752408622546,0.13064878,117880.0,117870.0,0.46502049]
[1752408625967,0.13064878,117880.0,117870.0,0.46502049]
[1752408629204,0.47064878,117880.0,117870.0,0.25668]
[1752408629418,0.50154878,117880.0,117870.0,0.45988]
[1752408629645,0.47064878,117880.0,117870.0,0.2032]
[1752408630728,0.35454085,117870.0,117860.0,0.0332]
[1752408630965,0.43997078,117870.0,117860.0,0.49525]
[1752408631174,0.43897078,117870.0,117860.0,0.49525]
[1752408631376,0.46440078,117870.0,117860.0,0.49525]
[1752408632029,0.46440078,117870.0,117860.0,0.49625]
[1752408638656,0.46733078,117870.0,117860.0,0.49625]
[1752408640122,0.46940078,117870.0,117860.0,0.48095]
[1752408647333,0.46940078,117870.0,117860.0,0.46505]
[1752408667939,0.46940078,117870.0,117860.0,0.46292]
[1752408677713,0.48560078,117870.0,117860.0,0.46292]
[1752408678529,0.46940078,117870.0,117860.0,0.46292]
[1752408696701,0.48580078,117870.0,117860.0,0.20324]
[1752408696950,0.50240078,117870.0,117860.0,0.20324]
[1752408697168,0.48863633,117870.0,117860.0,0.20324]
[1752408697582,0.01454085,117860.0,117840.0,0.1316]
[1752408697792,0.01454085,117860.0,117850.0,0.20324]
[1752408697990,0.10492078,117860.0,117850.0,0.45968]
[1752408698142,0.13035278,117860.0,117850.0,0.45968]
[1752408699200,0.47035278,117860.0,117850.0,0.45968]
[1752408699707,0.47035278,117860.0,117850.0,0.46168]
[1752408699914,0.47035278,117860.0,117850.0,0.46268]
[1752408700240,0.48675278,117860.0,117840.0,0.10404949]
[1752408700414,0.41498285,117860.0,117850.0,0.20324]
[1752408700620,0.47498078,117860.0,117850.0,0.20324]
[1752408700765,0.50041378,117860.0,117840.0,0.10404949]
[1752408700972,0.10291078,117850.0,117840.0,0.10404949]
[1752408701199,0.10492078,117850.0,117840.0,0.10611949]
[1752408701360,0.13035478,117850.0,117840.0,0.36255949]
[1752408702104,0.13035478,117850.0,117840.0,0.35855949]
[1752408703297,0.95985478,117850.0,117840.0,0.09157993]
[1752408703503,0.99285478,117850.0,117840.0,0.21977993]
[1752408703710,0.99285478,117850.0,117840.0,0.21131037]
[1752408704139,0.99285478,117850.0,117840.0,0.20284081]
[1752408705299,0.99285478,117850.0,117840.0,0.40608081]
[1752408706313,0.99285478,117850.0,117840.0,0.3976093]
[1752408706710,0.99285478,117850.0,117840.0,0.38913779]
[1752408707118,0.99285478,117850.0,117840.0,0.38066628]
[1752408707119,0.48958857,117850.0,117840.0,0.38066628]
[1752408707445,0.48958857,117850.0,117840.0,0.37219477]
[1752408707879,0.48958857,117850.0,117840.0,0.36372326]
[1752408708303,0.48958857,117850.0,117840.0,0.35525175]
[1752408708671,0.48958857,117850.0,117840.0,0.34678024]
[1752408709044,0.48958857,117850.0,117840.0,0.33830873]
[1752408709488,0.48948857,117850.0,117840.0,0.20328]
[1752408710620,0.48948857,117850.0,117840.0,0.33152]
[1752408710982,0.34,117840.0,117830.0,0.02]
[1752408711187,0.43037993,117840.0,117830.0,0.02049539]
[1752408711984,0.45581693,117840.0,117830.0,0.02049539]
[1752408712196,0.45581693,117840.0,117830.0,0.02249539]
[1752408712393,0.45581693,117840.0,117830.0,0.15173539]
[1752408715349,0.45581693,117840.0,117830.0,0.35501539]
[1752408723931,0.47035778,117840.0,117830.0,0.35501539]
[1752408724569,0.47035778,117840.0,117830.0,0.22677539]
[1752408724899,0.47035778,117840.0,117830.0,0.35501539]
[1752408725081,0.48625778,117840.0,117830.0,0.35501539]
[1752408725834,0.47035778,117840.0,117830.0,0.35501539]
[1752408726035,0.47035778,117840.0,117830.0,0.35710539]
[1752408726758,0.47035778,117840.0,117830.0,0.35501539]
[1752408727765,0.47035778,117840.0,117830.0,0.22677539]
[1752408727965,0.47035778,117840.0,117830.0,0.35505539]
[1752408728618,0.47035778,117840.0,117830.0,0.22677539]
[1752408728806,0.47035778,117840.0,117830.0,0.21912707]
[1752408729010,0.47035778,117840.0,117830.0,0.34752]
[1752408732072,0.47035778,117840.0,117830.0,0.36392]
[1752408733378,0.45659038,117840.0,117830.0,0.36392]
[1752408733780,0.45458038,117840.0,117830.0,0.36392]
[1752408735654,0.45654038,117840.0,117830.0,0.36392]
[1752408735855,0.45654038,117840.0,117830.0,0.33182]
[1752408736221,0.46677626,117840.0,117830.0,0.33182]
[1752408738474,0.46677626,117840.0,117830.0,0.33152]
[1752408739967,0.14054366,117840.0,117830.0,0.33152]
[1752408749798,0.14054366,117840.0,117830.0,0.34672]
[1752408751683,0.12600281,117840.0,117830.0,0.34672]
[1752408755780,0.12600281,117840.0,117830.0,0.33152]
[1752408764006,0.12110281,117840.0,117830.0,0.36282]
[1752408764223,0.12110281,117840.0,117830.0,0.36301]
[1752408767879,0.12110281,117840.0,117830.0,0.36282]
[1752408770008,0.11086693,117840.0,117830.0,0.36301]
[1752408770250,0.002,117850.0,117840.0,0.0323]
[1752408770425,0.08742993,117850.0,117840.0,0.03472152]
[1752408771755,0.08842993,117850.0,117840.0,0.03472152]
[1752408772313,0.08942993,117850.0,117840.0,0.03472152]
[1752408772588,0.08942993,117850.0,117840.0,0.03491152]
[1752408775364,0.08942993,117850.0,117840.0,0.03472152]
[1752408776372,0.08942993,117850.0,117840.0,0.03501556]
[1752408782689,0.08942993,117850.0,117840.0,0.03289404]
[1752408788505,0.08942993,117850.0,117840.0,0.03501556]
[1752408791382,0.08942993,117850.0,117840.0,0.14069556]
[1752408796568,0.004,117850.0,117840.0,0.14069556]
[1752408796786,0.10314,117870.0,117850.0,0.0314]
[1752408797042,0.128568,117870.0,117860.0,0.25668]
[1752408797263,0.21610793,117870.0,117860.0,0.25668]
[1752408798590,0.55610793,117870.0,117860.0,0.25668]
[1752408799209,0.56661421,117870.0,117860.0,0.25668]
[1752408799694,0.56561421,117870.0,117860.0,0.25668]
[1752408800113,0.56761421,117870.0,117860.0,0.25668]
[1752408800324,0.55810793,117870.0,117860.0,0.25668]
[1752408801003,0.55810793,117870.0,117860.0,0.45992]
[1752408801404,0.56010793,117870.0,117860.0,0.45992]
[1752408803732,0.57003979,117870.0,117860.0,0.45992]
[1752408822717,0.57003979,117870.0,117860.0,0.47582]
[1752408823160,0.57003979,117870.0,117860.0,0.49152]
[1752408823370,0.56478979,117870.0,117860.0,0.49152]
[1752408823804,0.22478979,117870.0,117860.0,0.49152]
[1752408825929,0.22784979,117870.0,117860.0,0.49152]
[1752408834836,0.22784979,117870.0,117860.0,0.5972]
[1752408836263,0.22784979,117870.0,117860.0,0.5818]
[1752408836396,0.22983979,117870.0,117860.0,0.5818]
[1752408870569,0.20441179,117870.0,117860.0,0.5818]
[1752408875436,0.20441179,117870.0,117860.0,0.5659]
[1752408885332,0.20441179,117870.0,117860.0,0.5656]
[1752408925522,0.19447993,117870.0,117860.0,0.5656]
[1752408929708,0.00029404,117860.0,117850.0,0.0312]
[1752408929857,0.19248993,117870.0,117850.0,0.34042]
[1752408930948,0.21591593,117870.0,117860.0,0.2562]